{"text_format":"1","workbook":"xlsx","n_sheets":2,"sheets":["Schedule C","Schedule D"],"not_rendered":{"charts":0,"images":0,"macros":0,"external_links":8,"defined_names":20,"comments":0,"pivot_tables":0},"unopened":[],"bounds":{"document_bytes":16777216,"sheet_cells":100000,"rows_first":2000,"rows_last":500,"rows_between":2000,"halvings":0,"cell_chars":16384,"cell_head_chars":4096},"cells_cut":0,"cells_raw":0,"read":"whole","date_system":"1900"}

{"sheet":"Schedule C","index":0,"n_rows":174,"n_cols":7,"rows_kept":174,"cut":false,"hidden":false,"merged":[[0,5,0,6]]}
["Level","Item","Bill description","Unit","Rate (£)","Extra Over"]
[1,"","Series 700 PAVEMENTS (Scope Paragraph 18.6.1)","",null,"Night Working (Mon-Fri 19:00-07:00) £","Weekend Working (07:00 Sat-07:00Mon) £"]
["c","","Repairs and Patching",""]
["c","","Local Repairs not exceeding 5 number Local Repairs per Task;",""]
[null,"1","In carriageways.","kg"]
[null,"2","In footways.","kg"]
["c","","Local Repairs exceeding 5 but not exceeding 20 number Local Repairs per Task;",""]
[null,"3","In carriageways.","kg"]
[null,"4","In footways.","kg"]
["c","","Local Repairs exceeding 20 number Local Repairs per Task;",""]
[null,"5","In carriageways.","kg"]
[null,"6","In footways.","kg"]
[2,"","Hand Lay Patching",""]
["c","","Patching; Hand lay; not exceeding 10 square metres of patching per Task;",""]
["c","","Individual patch area not exceeding 1 square metre; in carriageways;",""]
[null,"7","Material ref: WC1 or WC2; layer not exceeding 50mm thick","m2"]
[null,"8","Material ref: WC1 or WC2; layer not exceeding 50mm thick laid over material refs BC1 or BC3 layer not exceeding 100mm thick; combined thickness not exceeding 150mm.","m2"]
[null,"9","Material ref: WC1 or WC2; layer not exceeding 50mm thick laid over material refs BC1 or BC3 layer not exceeding 100mm thick laid over material refs: BA1 or BA3 layer not exceeding 200mm thick; combined thickness not exceeding 350mm.","m2"]
["c","","Individual patch area not exceeding 5 square metres; in footways and paved areas;",""]
[null,"10","Material ref: PWC1 or FWC1; layer not exceeding 25mm thick","m2"]
[null,"11","Material ref: PWC1 or FWC1; layer not exceeding 25mm thick laid over material refs PBC1 or FBC1 layer not exceeding 75mm thick; combined thickness not exceeding 100mm.","m2"]
["c","","Individual patch area exceeding 5 square metres but not exceeding 10 square metres; in footways and paved areas;",""]
[null,"12","Material ref: PWC1 or FWC1; layer not exceeding 25mm thick","m2"]
[null,"13","Material ref: PWC1 or FWC1; layer not exceeding 25mm thick laid over material refs PBC1 or FBC1 layer not exceeding 75mm thick; combined thickness not exceeding 100mm.","m2"]
["c","","Patching; Hand lay; exceeding 10 square metres but not exceeding 20 square metres of patching per Task;",""]
["c","","Individual patch area not exceeding 1 square metre; in carriageways;",""]
[null,"14","Material ref: WC1 or WC2; layer not exceeding 50mm thick","m2"]
[null,"15","Material ref: WC1 or WC2; layer not exceeding 50mm thick laid over material refs BC1 or BC3 layer not exceeding 100mm thick; combined thickness not exceeding 150mm.","m2"]
[null,"16","Material ref: WC1 or WC2; layer not exceeding 50mm thick laid over material refs BC1 or BC3 layer not exceeding 100mm thick laid over material refs: BA1 or BA3 layer not exceeding 200mm thick; combined thickness not exceeding 350mm.","m2"]
["c","","Individual patch area not exceeding 5 square metres; in footways and paved areas;",""]
[null,"17","Material ref: PWC1 or FWC1; layer not exceeding 25mm thick","m2"]
[null,"18","Material ref: PWC1 or FWC1; layer not exceeding 25mm thick laid over material refs PBC1 or FBC1 layer not exceeding 75mm thick; combined thickness not exceeding 100mm.","m2"]
["c","","Individual patch area exceeding 5 square metres but not exceeding 10 square metres; in footways and paved areas;",""]
[null,"19","Material ref: PWC1 or FWC1; layer not exceeding 25mm thick","m2"]
[null,"20","Material ref: PWC1 or FWC1; layer not exceeding 25mm thick laid over material refs PBC1 or FBC1 layer not exceeding 75mm thick; combined thickness not exceeding 100mm.","m2"]
["c","","Individual patch area exceeding 10 square metres but not exceeding 15 square metres; in footways and paved areas;",""]
[null,"21","Material ref: PWC1 or FWC1; layer not exceeding 25mm thick","m2"]
[null,"22","Material ref: PWC1 or FWC1; layer not exceeding 25mm thick laid over material refs PBC1 or FBC1 layer not exceeding 75mm thick; combined thickness not exceeding 100mm.","m2"]
["c","","Individual patch area exceeding 15 square metres but not exceeding 20 square metres; in footways and paved areas;",""]
[null,"23","Material ref: PWC1 or FWC1; layer not exceeding 25mm thick","m2"]
[null,"24","Material ref: PWC1 or FWC1; layer not exceeding 25mm thick laid over material refs PBC1 or FBC1 layer not exceeding 75mm thick; combined thickness not exceeding 100mm.","m2"]
["c","","Patching; Hand lay; exceeding 20 square metres but not exceeding 50 square metres of patching per Task;",""]
["c","","Individual patch area not exceeding 1 square metre; in carriageways;",""]
[null,"25","Material ref: WC1 or WC2; layer not exceeding 50mm thick","m2"]
[null,"26","Material ref: WC1 or WC2; layer not exceeding 50mm thick laid over material refs BC1 or BC3 layer not exceeding 100mm thick; combined thickness not exceeding 150mm.","m2"]
[null,"27","Material ref: WC1 or WC2; layer not exceeding 50mm thick laid over material refs BC1 or BC3 layer not exceeding 100mm thick laid over material refs: BA1 or BA3 layer not exceeding 200mm thick; combined thickness not exceeding 350mm.","m2"]
["c","","Individual patch area not exceeding 5 square metres; in footways and paved areas;",""]
[null,"28","Material ref: PWC1 or FWC1; layer not exceeding 25mm thick","m2"]
[null,"29","Material ref: PWC1 or FWC1; layer not exceeding 25mm thick laid over material refs PBC1 or FBC1 layer not exceeding 75mm thick; combined thickness not exceeding 100mm.","m2"]
["c","","Individual patch area exceeding 5 square metres but not exceeding 10 square metres; in footways and paved areas;",""]
[null,"30","Material ref: PWC1 or FWC1; layer not exceeding 25mm thick","m2"]
[null,"31","Material ref: PWC1 or FWC1; layer not exceeding 25mm thick laid over material refs PBC1 or FBC1 layer not exceeding 75mm thick; combined thickness not exceeding 100mm.","m2"]
["c","","Individual patch area exceeding 10 square metres but not exceeding 15 square metres; in footways and paved areas;",""]
[null,"32","Material ref: PWC1 or FWC1; layer not exceeding 25mm thick","m2"]
[null,"33","Material ref: PWC1 or FWC1; layer not exceeding 25mm thick laid over material refs PBC1 or FBC1 layer not exceeding 75mm thick; combined thickness not exceeding 100mm.","m2"]
["c","","Individual patch area exceeding 15 square metres but not exceeding 20 square metres; in footways and paved areas;",""]
[null,"34","Material ref: PWC1 or FWC1; layer not exceeding 25mm thick","m2"]
[null,"35","Material ref: PWC1 or FWC1; layer not exceeding 25mm thick laid over material refs PBC1 or FBC1 layer not exceeding 75mm thick; combined thickness not exceeding 100mm.","m2"]
["c","","Individual patch area exceeding 20 square metres but not exceeding 50 square metres; in footways and paved areas;",""]
[null,"36","Material ref: PWC1 or FWC1; layer not exceeding 25mm thick","m2"]
[null,"37","Material ref: PWC1 or FWC1; layer not exceeding 25mm thick laid over material refs PBC1 or FBC1 layer not exceeding 75mm thick; combined thickness not exceeding 100mm.","m2"]
["c","","Patching; Hand lay; exceeding 50 square metres of patching per Task;",""]
["c","","Individual patch area not exceeding 1 square metre; in carriageways;",""]
[null,"38","Material ref: WC1 or WC2; layer not exceeding 50mm thick","m2"]
[null,"39","Material ref: WC1 or WC2; layer not exceeding 50mm thick laid over material refs BC1 or BC3 layer not exceeding 100mm thick; combined thickness not exceeding 150mm.","m2"]
[null,"40","Material ref: WC1 or WC2; layer not exceeding 50mm thick laid over material refs BC1 or BC3 layer not exceeding 100mm thick laid over material refs: BA1 or BA3 layer not exceeding 200mm thick; combined thickness not exceeding 350mm.","m2"]
["c","","Individual patch area not exceeding 5 square metres; in footways and paved areas;",""]
[null,"41","Material ref: PWC1 or FWC1; layer not exceeding 25mm thick","m2"]
[null,"42","Material ref: PWC1 or FWC1; layer not exceeding 25mm thick laid over material refs PBC1 or FBC1 layer not exceeding 75mm thick; combined thickness not exceeding 100mm.","m2"]
["c","","Individual patch area exceeding 5 square metres but not exceeding 10 square metres; in footways and paved areas;",""]
[null,"43","Material ref: PWC1 or FWC1; layer not exceeding 25mm thick","m2"]
[null,"44","Material ref: PWC1 or FWC1; layer not exceeding 25mm thick laid over material refs PBC1 or FBC1 layer not exceeding 75mm thick; combined thickness not exceeding 100mm.","m2"]
["c","","Individual patch area exceeding 10 square metres but not exceeding 15 square metres; in footways and paved areas;",""]
[null,"45","Material ref: PWC1 or FWC1; layer not exceeding 25mm thick","m2"]
[null,"46","Material ref: PWC1 or FWC1; layer not exceeding 25mm thick laid over material refs PBC1 or FBC1 layer not exceeding 75mm thick; combined thickness not exceeding 100mm.","m2"]
["c","","Individual patch area exceeding 15 square metres but not exceeding 20 square metres; in footways and paved areas;",""]
[null,"47","Material ref: PWC1 or FWC1; layer not exceeding 25mm thick","m2"]
[null,"48","Material ref: PWC1 or FWC1; layer not exceeding 25mm thick laid over material refs PBC1 or FBC1 layer not exceeding 75mm thick; combined thickness not exceeding 100mm.","m2"]
["c","","Individual patch area exceeding 20 square metres but not exceeding 50 square metres; in footways and paved areas;",""]
[null,"49","Material ref: PWC1 or FWC1; layer not exceeding 25mm thick","m2"]
[null,"50","Material ref: PWC1 or FWC1; layer not exceeding 25mm thick laid over material refs PBC1 or FBC1 layer not exceeding 75mm thick; combined thickness not exceeding 100mm.","m2"]
["c","","Individual patch area exceeding 50 square metres; in footways and paved areas;",""]
[null,"51","Material ref: PWC1 or FWC1; layer not exceeding 25mm thick","m2"]
[null,"52","Material ref: PWC1 or FWC1; layer not exceeding 25mm thick laid over material refs PBC1 or FBC1 layer not exceeding 75mm thick; combined thickness not exceeding 100mm.","m2"]
[2,"","Patching; Machine lay; exceeding 10 square metres but not exceeding 20 square metres of patching per Task;",""]
["c","","Individual patch area not exceeding 5 square metres; in carriageways;",""]
[null,"53","Material ref: WC1 or WC2; layer not exceeding 50mm thick","m2"]
[null,"54","Material refs: WC1 or WC2; layer not exceeding 50mm thick laid over material refs BC1 or BC3 layer not exceeding 100mm thick; combined thickness not exceeding 150mm.","m2"]
[null,"55","Material refs: WC1 or WC2; layer not exceeding 50mm thick laid over material refs BC1 or BC3 layer not exceeding 100mm thick laid over material refs: BA1 or BA3 layer not exceeding 200mm thick; combined thickness not exceeding 350mm.","m2"]
["c","","Individual patch area exceeding 5 square metres but not exceeding 10 square metres; in carriageways;",""]
[null,"56","Material ref: WC1 or WC2; layer not exceeding 50mm thick","m2"]
[null,"57","Material refs: WC1 or WC2; layer not exceeding 50mm thick laid over material refs BC1 or BC3 layer not exceeding 100mm thick; combined thickness not exceeding 150mm.","m2"]
[null,"58","Material refs: WC1 or WC2; layer not exceeding 50mm thick laid over material refs BC1 or BC3 layer not exceeding 100mm thick laid over material refs: BA1 or BA3 layer not exceeding 200mm thick; combined thickness not exceeding 350mm.","m2"]
[null,"59","Material ref: WC5; layer not exceeding 50mm thick","m2"]
[null,"60","Material refs: WC5; layer not exceeding 50mm thick laid over material refs BC1 or BC3 layer not exceeding 100mm thick; combined thickness not exceeding 150mm.","m2"]
[null,"61","Material refs: WC5; layer not exceeding 50mm thick laid over material refs BC1 or BC3 layer not exceeding 100mm thick laid over material refs:  BA1 or BA3 layer not exceeding 200mm thick; combined thickness not exceeding 350mm.","m2"]
[null,"62","Material ref: WC6; layer not exceeding 50mm thick","m2"]
[null,"63","Material refs: WC6; layer not exceeding 50mm thick laid over material refs BC1 or BC3 layer not exceeding 100mm thick; combined thickness not exceeding 150mm.","m2"]
[null,"64","Material refs: WC6; layer not exceeding 50mm thick laid over material refs BC1 or BC3 layer not exceeding 100mm thick laid over material refs:  BA1 or BA3 layer not exceeding 200mm thick; combined thickness not exceeding 350mm.","m2"]
[null,"65","Material ref: WC8; layer not exceeding 50mm thick","m2"]
[null,"66","Material refs: WC8; layer not exceeding 50mm thick laid over material refs BC1 or BC3 layer not exceeding 100mm thick; combined thickness not exceeding 150mm.","m2"]
[null,"67","Material refs: WC8; layer not exceeding 50mm thick laid over material refs BC1 or BC3 layer not exceeding 100mm thick laid over material refs:  BA1 or BA3 layer not exceeding 200mm thick; combined thickness not exceeding 350mm.","m2"]
["c","","Individual patch area exceeding 10 square metres but not exceeding 15 square metres; in carriageways;",""]
[null,"68","Material ref: WC1 or WC2; layer not exceeding 50mm thick","m2"]
[null,"69","Material refs: WC1 or WC2; layer not exceeding 50mm thick laid over material refs BC1 or BC3 layer not exceeding 100mm thick; combined thickness not exceeding 150mm.","m2"]
[null,"70","Material refs: WC1 or WC2; layer not exceeding 50mm thick laid over material refs BC1 or BC3 layer not exceeding 100mm thick laid over material refs: BA1 or BA3 layer not exceeding 200mm thick; combined thickness not exceeding 350mm.","m2"]
[null,"71","Material ref: WC5; layer not exceeding 50mm thick","m2"]
[null,"72","Material refs: WC5; layer not exceeding 50mm thick laid over material refs BC1 or BC3 layer not exceeding 100mm thick; combined thickness not exceeding 150mm.","m2"]
[null,"73","Material refs: WC5; layer not exceeding 50mm thick laid over material refs BC1 or BC3 layer not exceeding 100mm thick laid over material refs:  BA1 or BA3 layer not exceeding 200mm thick; combined thickness not exceeding 350mm.","m2"]
[null,"74","Material ref: WC6; layer not exceeding 50mm thick","m2"]
[null,"75","Material refs: WC6; layer not exceeding 50mm thick laid over material refs BC1 or BC3 layer not exceeding 100mm thick; combined thickness not exceeding 150mm.","m2"]
[null,"76","Material refs: WC6; layer not exceeding 50mm thick laid over material refs BC1 or BC3 layer not exceeding 100mm thick laid over material refs:  BA1 or BA3 layer not exceeding 200mm thick; combined thickness not exceeding 350mm.","m2"]
[null,"77","Material ref: WC8; layer not exceeding 50mm thick","m2"]
[null,"78","Material refs: WC8; layer not exceeding 50mm thick laid over material refs BC1 or BC3 layer not exceeding 100mm thick; combined thickness not exceeding 150mm.","m2"]
[null,"79","Material refs: WC8; layer not exceeding 50mm thick laid over material refs BC1 or BC3 layer not exceeding 100mm thick laid over material refs:  BA1 or BA3 layer not exceeding 200mm thick; combined thickness not exceeding 350mm.","m2"]
["c","","Individual patch area exceeding 15 square metres but not exceeding 20 square metres; in carriageways;",""]
[null,"80","Material ref: WC1 or WC2; layer not exceeding 50mm thick","m2"]
[null,"81","Material refs: WC1 or WC2; layer not exceeding 50mm thick laid over material refs BC1 or BC3 layer not exceeding 100mm thick; combined thickness not exceeding 150mm.","m2"]
[null,"82","Material refs: WC1 or WC2; layer not exceeding 50mm thick laid over material refs BC1 or BC3 layer not exceeding 100mm thick laid over material refs: BA1 or BA3 layer not exceeding 200mm thick; combined thickness not exceeding 350mm.","m2"]
[null,"83","Material ref: WC5; layer not exceeding 50mm thick","m2"]
[null,"84","Material refs: WC5; layer not exceeding 50mm thick laid over material refs BC1 or BC3 layer not exceeding 100mm thick; combined thickness not exceeding 150mm.","m2"]
[null,"85","Material refs: WC5; layer not exceeding 50mm thick laid over material refs BC1 or BC3 layer not exceeding 100mm thick laid over material refs:  BA1 or BA3 layer not exceeding 200mm thick; combined thickness not exceeding 350mm.","m2"]
[null,"86","Material ref: WC6; layer not exceeding 50mm thick","m2"]
[null,"87","Material refs: WC6; layer not exceeding 50mm thick laid over material refs BC1 or BC3 layer not exceeding 100mm thick; combined thickness not exceeding 150mm.","m2"]
[null,"88","Material refs: WC6; layer not exceeding 50mm thick laid over material refs BC1 or BC3 layer not exceeding 100mm thick laid over material refs:  BA1 or BA3 layer not exceeding 200mm thick; combined thickness not exceeding 350mm.","m2"]
[null,"89","Material ref: WC8; layer not exceeding 50mm thick","m2"]
[null,"90","Material refs: WC8; layer not exceeding 50mm thick laid over material refs BC1 or BC3 layer not exceeding 100mm thick; combined thickness not exceeding 150mm.","m2"]
[null,"91","Material refs: WC8; layer not exceeding 50mm thick laid over material refs BC1 or BC3 layer not exceeding 100mm thick laid over material refs:  BA1 or BA3 layer not exceeding 200mm thick; combined thickness not exceeding 350mm.","m2"]
["c","","Patching; Machine lay; exceeding 20 square metres but not exceeding 50 square metres of patching per Task;",""]
["c","","Individual patch area not exceeding 5 square metres; in carriageways;",""]
[null,"92","Material ref: WC1 or WC2; layer not exceeding 50mm thick","m2"]
[null,"93","Material refs: WC1 or WC2; layer not exceeding 50mm thick laid over material refs BC1 or BC3 layer not exceeding 100mm thick; combined thickness not exceeding 150mm.","m2"]
[null,"94","Material refs: WC1 or WC2; layer not exceeding 50mm thick laid over material refs BC1 or BC3 layer not exceeding 100mm thick laid over material refs: BA1 or BA3 layer not exceeding 200mm thick; combined thickness not exceeding 350mm.","m2"]
["c","","Individual patch area exceeding 5 square metres but not exceeding 10 square metres; in carriageways;",""]
[null,"95","Material ref: WC1 or WC2; layer not exceeding 50mm thick","m2"]
[null,"96","Material refs: WC1 or WC2; layer not exceeding 50mm thick laid over material refs BC1 or BC3 layer not exceeding 100mm thick; combined thickness not exceeding 150mm.","m2"]
[null,"97","Material refs: WC1 or WC2; layer not exceeding 50mm thick laid over material refs BC1 or BC3 layer not exceeding 100mm thick laid over material refs: BA1 or BA3 layer not exceeding 200mm thick; combined thickness not exceeding 350mm.","m2"]
["c","","Individual patch area exceeding 10 square metres but not exceeding 15 square metres; in carriageways;",""]
[null,"98","Material ref: WC1 or WC2; layer not exceeding 50mm thick","m2"]
[null,"99","Material refs: WC1 or WC2; layer not exceeding 50mm thick laid over material refs BC1 or BC3 layer not exceeding 100mm thick; combined thickness not exceeding 150mm.","m2"]
[null,"100","Material refs: WC1 or WC2; layer not exceeding 50mm thick laid over material refs BC1 or BC3 layer not exceeding 100mm thick laid over material refs: BA1 or BA3 layer not exceeding 200mm thick; combined thickness not exceeding 350mm.","m2"]
["c","","Individual patch area exceeding 15 square metres but not exceeding 20 square metres; in carriageways;",""]
[null,"101","Material ref: WC1 or WC2; layer not exceeding 50mm thick","m2"]
[null,"102","Material refs: WC1 or WC2; layer not exceeding 50mm thick laid over material refs BC1 or BC3 layer not exceeding 100mm thick; combined thickness not exceeding 150mm.","m2"]
[null,"103","Material refs: WC1 or WC2; layer not exceeding 50mm thick laid over material refs BC1 or BC3 layer not exceeding 100mm thick laid over material refs: BA1 or BA3 layer not exceeding 200mm thick; combined thickness not exceeding 350mm.","m2"]
["c","","Individual patch area exceeding 20 square metres but not exceeding 50 square metres; in carriageways;",""]
[null,"104","Material ref: WC1 or WC2; layer not exceeding 50mm thick","m2"]
[null,"105","Material refs: WC1 or WC2; layer not exceeding 50mm thick laid over material refs BC1 or BC3 layer not exceeding 100mm thick; combined thickness not exceeding 150mm.","m2"]
[null,"106","Material refs: WC1 or WC2; layer not exceeding 50mm thick laid over material refs BC1 or BC3 layer not exceeding 100mm thick laid over material refs: BA1 or BA3 layer not exceeding 200mm thick; combined thickness not exceeding 350mm.","m2"]
["c","","Patching; Machine lay; exceeding 50 square metres of patching per Task;",""]
["c","","Individual patch area not exceeding 5 square metres; in carriageways;",""]
[null,"107","Material ref: WC1 or WC2; layer not exceeding 50mm thick","m2"]
[null,"108","Material refs: WC1 or WC2; layer not exceeding 50mm thick laid over material refs BC1 or BC3 layer not exceeding 100mm thick; combined thickness not exceeding 150mm.","m2"]
[null,"109","Material refs: WC1 or WC2; layer not exceeding 50mm thick laid over material refs BC1 or BC3 layer not exceeding 100mm thick laid over material refs: BA1 or BA3 layer not exceeding 200mm thick; combined thickness not exceeding 350mm.","m2"]
["c","","Individual patch area exceeding 5 square metres but not exceeding 10 square metres; in carriageways;",""]
[null,"110","Material ref: WC1 or WC2; layer not exceeding 50mm thick","m2"]
[null,"111","Material refs: WC1 or WC2; layer not exceeding 50mm thick laid over material refs BC1 or BC3 layer not exceeding 100mm thick; combined thickness not exceeding 150mm.","m2"]
[null,"112","Material refs: WC1 or WC2; layer not exceeding 50mm thick laid over material refs BC1 or BC3 layer not exceeding 100mm thick laid over material refs: BA1 or BA3 layer not exceeding 200mm thick; combined thickness not exceeding 350mm.","m2"]
["c","","Individual patch area exceeding 10 square metres but not exceeding 15 square metres; in carriageways;",""]
[null,"113","Material ref: WC1 or WC2; layer not exceeding 50mm thick","m2"]
[null,"114","Material refs: WC1 or WC2; layer not exceeding 50mm thick laid over material refs BC1 or BC3 layer not exceeding 100mm thick; combined thickness not exceeding 150mm.","m2"]
[null,"115","Material refs: WC1 or WC2; layer not exceeding 50mm thick laid over material refs BC1 or BC3 layer not exceeding 100mm thick laid over material refs: BA1 or BA3 layer not exceeding 200mm thick; combined thickness not exceeding 350mm.","m2"]
["c","","Individual patch area exceeding 15 square metres but not exceeding 20 square metres; in carriageways;",""]
[null,"116","Material ref: WC1 or WC2; layer not exceeding 50mm thick","m2"]
[null,"117","Material refs: WC1 or WC2; layer not exceeding 50mm thick laid over material refs BC1 or BC3 layer not exceeding 100mm thick; combined thickness not exceeding 150mm.","m2"]
[null,"118","Material refs: WC1 or WC2; layer not exceeding 50mm thick laid over material refs BC1 or BC3 layer not exceeding 100mm thick laid over material refs: BA1 or BA3 layer not exceeding 200mm thick; combined thickness not exceeding 350mm.","m2"]
["c","","Individual patch area exceeding 20 square metres but not exceeding 50 square metres; in carriageways;",""]
[null,"119","Material ref: WC1 or WC2; layer not exceeding 50mm thick","m2"]
[null,"120","Material refs: WC1 or WC2; layer not exceeding 50mm thick laid over material refs BC1 or BC3 layer not exceeding 100mm thick; combined thickness not exceeding 150mm.","m2"]
[null,"121","Material refs: WC1 or WC2; layer not exceeding 50mm thick laid over material refs BC1 or BC3 layer not exceeding 100mm thick laid over material refs: BA1 or BA3 layer not exceeding 200mm thick; combined thickness not exceeding 350mm.","m2"]
["c","","Individual patch area exceeding  50 square metres; in carriageways;",""]
[null,"122","Material ref: WC1 or WC2; layer not exceeding 50mm thick","m2"]
[null,"123","Material refs: WC1 or WC2; layer not exceeding 50mm thick laid over material refs BC1 or BC3 layer not exceeding 100mm thick; combined thickness not exceeding 150mm.","m2"]
[null,"124","Material refs: WC1 or WC2; layer not exceeding 50mm thick laid over material refs BC1 or BC3 layer not exceeding 100mm thick laid over material refs: BA1 or BA3 layer not exceeding 200mm thick; combined thickness not exceeding 350mm.","m2"]

{"sheet":"Schedule D","index":1,"n_rows":95,"n_cols":21,"rows_kept":95,"cut":false,"hidden":false,"merged":[[9,9,11,13]]}
[null,null,null,null,null,null,null,null,null,"Costing Component Sheet"]
[]
[null,null,null,null,null,null,null,null,null,"Site: "]
[null,null,null,null,null,null,null,null,null,"WO Number:"]
[null,null,null,null,null,null,null,null,null,"TO Number:"]
[null,null,null,null,null,null,null,null,null,"Schedule"]
[null,null,null,null,null,null,null,null,null,"Start Date"]
[null,null,null,null,null,null,null,null,null,"End Date"]
[null,null,null,null,null,null,null,null,null,"Application Number"]
[null,null,null,null,null,null,null,null,null,"Details of scheme: \n"]
[]
[]
[]
[null,null,null,null,null,null,null,null,null,null,"LABOUR",null,null,null,null,null,null,"DATES",null,null,"DATES"]
[null,null,null,null,null,null,null,null,null,"Ref","Description","Total Qty","Rate Per shift","Unit",null,"Application Total"]
[null,{"$f":"$K$7","v":"00:00:00"},{"$f":"$K$8","v":"00:00:00"},null,{"$f":"$K$9","v":0},{"$f":"$K$4","v":0},null,{"$f":"$K$5","v":0},{"$f":"$K$6","v":0},null,"Day - Foreman",{"$f":"SUM(R16:U16)","v":0},null,"Day",null,{"$f":"L16*M16","v":0}]
[null,"00:00:00","00:00:00",null,0,0,null,0,0,null,"Day - Operatives",{"$f":"SUM(R17:U17)","v":0},null,"Day",null,{"$f":"L17*M17","v":0}]
[null,"00:00:00","00:00:00",null,0,0,null,0,0,null,"Day - Supervisor",{"$f":"SUM(R18:U18)","v":0},null,"Day",null,{"$f":"L18*M18","v":0}]
[null,"00:00:00","00:00:00",null,0,0,null,0,0,null,"Day - HGV Driver",{"$f":"SUM(R19:U19)","v":0},null,"Day",null,{"$f":"L19*M19","v":0}]
[null,"00:00:00","00:00:00",null,0,0,null,0,0]
[null,"00:00:00","00:00:00",null,0,0,null,0,0,null,"Day - Technician (Mattest)",{"$f":"SUM(R21:U21)","v":0},null,"Day",null,{"$f":"L21*M21","v":0}]
[null,"00:00:00","00:00:00",null,0,0,null,0,0,null,"Day - Planing operatives & HGV Drivers (MAC)",{"$f":"SUM(R22:U22)","v":0},null,"Day",null,{"$f":"L22*M22","v":0}]
[null,"00:00:00","00:00:00",null,0,0,null,0,0]
[null,"00:00:00","00:00:00",null,0,0,null,0,0,null,"Night - Foreman",{"$f":"SUM(R24:U24)","v":0},null,"Night",null,{"$f":"L24*M24","v":0}]
[null,"00:00:00","00:00:00",null,0,0,null,0,0,null,"Night - Operatives",{"$f":"SUM(R25:U25)","v":0},null,"Night",null,{"$f":"L25*M25","v":0}]
[null,"00:00:00","00:00:00",null,0,0,null,0,0,null,"Night - Supervisor",{"$f":"SUM(R26:U26)","v":0},null,"Night",null,{"$f":"L26*M26","v":0}]
[null,"00:00:00","00:00:00",null,0,0,null,0,0,null,"Night - HGV Driver",{"$f":"SUM(R27:U27)","v":0},null,"Night",null,{"$f":"L27*M27","v":0}]
[null,"00:00:00","00:00:00",null,0,0,null,0,0]
[null,"00:00:00","00:00:00",null,0,0,null,0,0,null,"Night - Technician (Mattest)",{"$f":"SUM(R29:U29)","v":0},null,"Night",null,{"$f":"L29*M29","v":0}]
[null,"00:00:00","00:00:00",null,0,0,null,0,0,null,"Night - Planing operatives & HGV Drivers (MAC)",{"$f":"SUM(R30:U30)","v":0},null,"Night",null,{"$f":"L30*M30","v":0}]
[null,"00:00:00","00:00:00",null,0,0,null,0,0]
[null,"00:00:00","00:00:00",null,0,0,null,0,0,null,"Emergency - Foreman",{"$f":"SUM(R32:U32)","v":0},null,"Emergency",null,{"$f":"L32*M32","v":0}]
[null,"00:00:00","00:00:00",null,0,0,null,0,0,null,"Emergency - Operatives",{"$f":"SUM(R33:U33)","v":0},null,"Emergency",null,{"$f":"L33*M33","v":0}]
[null,"00:00:00","00:00:00",null,0,0,null,0,0,null,"Emergency - Supervisor",{"$f":"SUM(R34:U34)","v":0},null,"Emergency",null,{"$f":"L34*M34","v":0}]
[null,"00:00:00","00:00:00",null,0,0,null,0,0,null,"Emergency - HGV Driver",{"$f":"SUM(R35:U35)","v":0},null,"Emergency",null,{"$f":"L35*M35","v":0}]
[null,"00:00:00","00:00:00",null,0,0,null,0,0]
[null,"00:00:00","00:00:00",null,0,0,null,0,0,null,"Emergency - Technician (Mattest)",{"$f":"SUM(R37:U37)","v":0},null,"Emergency",null,{"$f":"L37*M37","v":0}]
[null,"00:00:00","00:00:00",null,0,0,null,0,0,null,"Emergency - Planing operatives & HGV Drivers (MAC)",{"$f":"SUM(R38:U38)","v":0},null,"Emergency",null,{"$f":"L38*M38","v":0}]
[null,"00:00:00","00:00:00",null,0,0,null,0,0]
[null,"00:00:00","00:00:00",null,0,0,null,0,0,null,"Crew Cab",{"$f":"SUM(R40:U40)","v":0},null,"Shift",null,{"$f":"L40*M40","v":0}]
[null,"00:00:00","00:00:00",null,0,0,null,0,0,null,"Tail Lift",0,null,"Shift",null,0]
[null,"00:00:00","00:00:00",null,0,0,null,0,0,null,"Small Van",0,null,"Shift",null,0]
[null,"00:00:00","00:00:00",null,0,0,null,0,0,null,"Supervisor Car",0,null,"Shift",null,0]
[null,"00:00:00","00:00:00",null,0,0,null,0,0,null,"7T Lorry",0,null,"Shift",null,0]
[null,"00:00:00","00:00:00",null,0,0,null,0,0,null,"Ped Roller",0,null,"Shift",null,0]
[null,"00:00:00","00:00:00",null,0,0,null,0,0,null,"Small Roller",0,null,"Shift",null,0]
[null,"00:00:00","00:00:00",null,0,0,null,0,0,null,"Big Roller",0,null,"Shift",null,0]
[null,"00:00:00","00:00:00",null,0,0,null,0,0,null,"Paver Large",0,null,"Shift",null,0]
[null,"00:00:00","00:00:00",null,0,0,null,0,0,null,"Paver Midi",0,null,"Shift",null,0]
[null,"00:00:00","00:00:00",null,0,0,null,0,0,null,"Chipper",0,null,"Shift",null,0]
[null,"00:00:00","00:00:00",null,0,0,null,0,0,null,"JCB Streetmaster",0,null,"Shift",null,0]
[null,"00:00:00","00:00:00",null,0,0,null,0,0,null,"Sprayer",0,null,"Shift",null,0]
[null,"00:00:00","00:00:00",null,0,0,null,0,0,null,"Tractor Unit & Trailer",0,null,"Shift",null,0]
[null,"00:00:00","00:00:00",null,0,0,null,0,0,null,"Small Tools (Hand Sprayer, Wacker Plate, Bit Pot, stihl Saw)",0,null,"Shift",null,0]
[null,"00:00:00","00:00:00",null,0,0,null,0,0]
[null,"00:00:00","00:00:00",null,0,0,null,0,0,null,"Sweeper",{"$f":"SUM(R56:U56)","v":0},null,"Shift",null,{"$f":"L56*M56","v":0}]
[null,"00:00:00","00:00:00",null,0,0,null,0,0,null,"2m Planer",0,null,"Shift",null,0]
[null,"00:00:00","00:00:00",null,0,0,null,0,0,null,"1.5m Planer",0,null,"Shift",null,0]
[null,"00:00:00","00:00:00",null,0,0,null,0,0,null,"1m Planer",0,null,"Shift",null,0]
[null,"00:00:00","00:00:00",null,0,0,null,0,0,null,"0.5m Planer",0,null,"Shift",null,0]
[null,"00:00:00","00:00:00",null,0,0,null,0,0,null,"0.35m Planer",0,null,"Shift",null,0]
[null,"00:00:00","00:00:00",null,0,0,null,0,0,null,"Transport",0,null,"Shift",null,0]
[null,"00:00:00","00:00:00",null,0,0,null,0,0,null,"Tippers",0,null,"Shift",null,0]
[null,"00:00:00","00:00:00",null,0,0,null,0,0,null,"Hotbox (inc Driver)",0,null,"Shift",null,0]
[null,"00:00:00","00:00:00",null,0,0,null,0,0]
[null,"00:00:00","00:00:00",null,0,0,null,0,0]
[null,"00:00:00","00:00:00",null,0,0,null,0,0,null,null,{"$f":"SUM(R67:U67)","v":0},null,"tonne",null,{"$f":"L67*M67","v":0}]
[null,"00:00:00","00:00:00",null,0,0,null,0,0,null,null,0,null,"tonne",null,0]
[null,"00:00:00","00:00:00",null,0,0,null,0,0,null,null,0,null,"tonne",null,0]
[null,"00:00:00","00:00:00",null,0,0,null,0,0,null,null,0,null,"tonne",null,0]
[null,"00:00:00","00:00:00",null,0,0,null,0,0,null,null,0,null,"tonne",null,0]
[null,"00:00:00","00:00:00",null,0,0,null,0,0,null,null,0,null,"tonne",null,0]
[null,"00:00:00","00:00:00",null,0,0,null,0,0,null,null,0,null,"tonne",null,0]
[null,"00:00:00","00:00:00",null,0,0,null,0,0,null,null,0,null,"tonne",null,0]
[null,"00:00:00","00:00:00",null,0,0,null,0,0,null,null,0,null,"tonne",null,0]
[null,"00:00:00","00:00:00",null,0,0,null,0,0,null,null,0,null,"tonne",null,0]
[null,"00:00:00","00:00:00",null,0,0,null,0,0,null,null,0,null,"tonne",null,0]
[null,"00:00:00","00:00:00",null,0,0,null,0,0,null,null,0,null,"tonne",null,0]
[null,"00:00:00","00:00:00",null,0,0,null,0,0,null,null,0,null,"tonne",null,0]
[null,{"$f":"$K$7","v":"00:00:00"},{"$f":"$K$8","v":"00:00:00"},null,{"$f":"$K$9","v":0},{"$f":"$K$4","v":0},null,{"$f":"$K$5","v":0},{"$f":"$K$6","v":0},null,null,0,null,"tonne",null,0]
[null,"00:00:00","00:00:00",null,0,0,null,0,0,null,null,0,null,"tonne",null,0]
[null,"00:00:00","00:00:00",null,0,0,null,0,0,null,null,0,null,"tonne",null,0]
[null,"00:00:00","00:00:00",null,0,0,null,0,0,null,null,0,null,"tonne",null,0]
[null,"00:00:00","00:00:00",null,0,0,null,0,0,null,null,0,null,"tonne",null,0]
[null,"00:00:00","00:00:00",null,0,0,null,0,0,null,null,0,null,"tonne",null,0]
[null,"00:00:00","00:00:00",null,0,0,null,0,0,null,null,0,null,"tonne",null,0]
[null,"00:00:00","00:00:00",null,0,0,null,0,0]
[null,"00:00:00","00:00:00",null,0,0,null,0,0,null,"Lining (Minimum visit)",{"$f":"SUM(R88:U88)","v":0},null,"visit",null,{"$f":"L88*M88","v":0}]
[null,"00:00:00","00:00:00",null,0,0,null,0,0,null,"Small load charge (min. 20t per load)",0,null,"tonne",null,0]
[null,"00:00:00","00:00:00",null,0,0,null,0,0,null,"Return Load Charge",0,null,"tonne",null,0]
[null,"00:00:00","00:00:00",null,0,0,null,0,0,null,"Cancelled Lorries",0,null,"Lorry",null,0]
[null,"00:00:00","00:00:00",null,0,0,null,0,0,null,"E/O for Out of Hours delivery",0,null,"tonne",null,0]
[null,"00:00:00","00:00:00",null,0,0,null,0,0,null,"Out of Hours opening charge",0,null,"Shift",null,0]
[]
[null,null,null,null,null,null,null,null,null,null,null,null,"Total",null,null,{"$f":"SUM(P16:P94)","v":0}]